[Event "Titled Tuesday Blitz June 28 Late 2022"]
[White "Kim, Sergey"]
[Black "Chernomordik, Pavel"]
[WhiteFideId "13700570"]
[BlackFideId "2804530"]
[WhiteElo "2587"]
[BlackElo "2220"]
[Result "1-0"]
[Round "10"]
[TimeControl "180+1"]
[Date "2022.06.29"]
[WhiteClock "0:00:26"]
[BlackClock "0:00:11"]

1. d4 {[%clk 0:03:00]}  g6 {[%clk 0:02:59]} 2. c4 {[%clk 0:02:59]}  Bg7 {[%clk 0:02:58]} 3. Nc3 {[%clk 0:02:59]}  d6 {[%clk 0:02:58]} 4. e4 {[%clk 0:02:58]}  c6 {[%clk 0:02:58]} 5. Nge2 {[%clk 0:02:59]}  a6 {[%clk 0:02:57]} 6. a4 {[%clk 0:02:58]}  a5 {[%clk 0:02:57]} 7. Ng3 {[%clk 0:02:57]}  Na6 {[%clk 0:02:56]} 8. Be2 {[%clk 0:02:57]}  Nb4 {[%clk 0:02:53]} 9. O-O {[%clk 0:02:57]}  Nf6 {[%clk 0:02:48]} 10. Be3 {[%clk 0:02:55]}  h5 {[%clk 0:02:46]} 11. f3 {[%clk 0:02:54]}  h4 {[%clk 0:02:42]} 12. Nh1 {[%clk 0:02:53]}  Nh5 {[%clk 0:02:41]} 13. f4 {[%clk 0:02:51]}  Qb6 {[%clk 0:02:29]} 14. Qd2 {[%clk 0:02:47]}  Qc7 {[%clk 0:02:18]} 15. Nf2 {[%clk 0:02:41]}  e5 {[%clk 0:02:12]} 16. fxe5 {[%clk 0:02:34]}  dxe5 {[%clk 0:02:11]} 17. d5 {[%clk 0:02:34]}  Nf4 {[%clk 0:02:07]} 18. c5 {[%clk 0:02:12]}  O-O {[%clk 0:01:52]} 19. Bc4 {[%clk 0:02:08]}  h3 {[%clk 0:01:48]} 20. g3 {[%clk 0:02:05]}  Ng2 {[%clk 0:01:47]} 21. d6 {[%clk 0:02:04]}  Qd8 {[%clk 0:01:47]} 22. Bg5 {[%clk 0:01:53]}  Qe8 {[%clk 0:01:40]} 23. Be7 {[%clk 0:01:46]}  Kh7 {[%clk 0:01:33]} 24. Nd3 {[%clk 0:01:24]}  Bh6 {[%clk 0:01:30]} 25. Qe2 {[%clk 0:01:23]}  Nxd3 {[%clk 0:01:20]} 26. Qxd3 {[%clk 0:01:22]}  Ne3 {[%clk 0:01:13]} 27. Bxf8 {[%clk 0:01:19]}  Nxf1 {[%clk 0:01:03]} 28. Bxh6 {[%clk 0:01:15]}  Kxh6 {[%clk 0:01:01]} 29. Rxf1 {[%clk 0:01:13]}  Be6 {[%clk 0:00:57]} 30. Bxe6 {[%clk 0:01:06]}  Qxe6 {[%clk 0:00:56]} 31. Nd1 {[%clk 0:00:54]}  Rd8 {[%clk 0:00:50]} 32. Nf2 {[%clk 0:00:50]}  b6 {[%clk 0:00:49]} 33. Qe3+ {[%clk 0:00:48]}  Kg7 {[%clk 0:00:47]} 34. Rd1 {[%clk 0:00:46]}  bxc5 {[%clk 0:00:45]} 35. Qxc5 {[%clk 0:00:45]}  Rb8 {[%clk 0:00:43]} 36. d7 {[%clk 0:00:43]}  Rd8 {[%clk 0:00:40]} 37. Qd6 {[%clk 0:00:41]}  Qb3 {[%clk 0:00:27]} 38. Qxe5+ {[%clk 0:00:39]}  Kh7 {[%clk 0:00:26]} 39. Qd4 {[%clk 0:00:36]}  Qf3 {[%clk 0:00:23]} 40. Kf1 {[%clk 0:00:35]}  Qg2+ {[%clk 0:00:19]} 41. Ke2 {[%clk 0:00:34]}  c5 {[%clk 0:00:18]} 42. Qf6 {[%clk 0:00:30]}  Rb8 {[%clk 0:00:12]} 43. d8=Q {[%clk 0:00:27]}  Rxd8 {[%clk 0:00:11]} 44. Rxd8 {[%clk 0:00:26]} 1-0


[Site "https://www.chess.com"]

[Event "Titled Tuesday Blitz June 28 Late 2022"]
[White "Lashkin, Jegor"]
[Black "Schekachikhin, Maksim"]
[WhiteFideId "13907808"]
[BlackFideId "24177830"]
[WhiteElo "2368"]
[BlackElo "2239"]
[Result "0-1"]
[Round "10"]
[TimeControl "180+1"]
[Date "2022.06.28"]
[WhiteClock "0:00:14"]
[BlackClock "0:00:08"]

1. d4 {[%clk 0:03:00]}  d5 {[%clk 0:03:00]} 2. c4 {[%clk 0:02:59]}  c6 {[%clk 0:03:00]} 3. Nc3 {[%clk 0:02:59]}  dxc4 {[%clk 0:02:59]} 4. a4 {[%clk 0:02:49]}  Nf6 {[%clk 0:02:52]} 5. e4 {[%clk 0:02:46]}  e5 {[%clk 0:02:51]} 6. d5 {[%clk 0:02:23]}  Bb4 {[%clk 0:02:47]} 7. Bxc4 {[%clk 0:02:22]}  Nxe4 {[%clk 0:02:46]} 8. Ne2 {[%clk 0:02:22]}  O-O {[%clk 0:02:41]} 9. O-O {[%clk 0:02:21]}  Nxc3 {[%clk 0:02:41]} 10. bxc3 {[%clk 0:02:21]}  Bc5 {[%clk 0:02:39]} 11. Ng3 {[%clk 0:02:09]}  cxd5 {[%clk 0:02:38]} 12. Bxd5 {[%clk 0:02:10]}  Nc6 {[%clk 0:02:38]} 13. Qf3 {[%clk 0:02:02]}  Qc7 {[%clk 0:02:27]} 14. Nh5 {[%clk 0:01:56]}  Ne7 {[%clk 0:02:21]} 15. Bb3 {[%clk 0:01:45]}  Ng6 {[%clk 0:02:16]} 16. Re1 {[%clk 0:01:07]}  Bd7 {[%clk 0:02:06]} 17. Bh6 {[%clk 0:01:00]}  Bc6 {[%clk 0:01:41]} 18. Qf5 {[%clk 0:00:59]}  Qb6 {[%clk 0:01:03]} 19. Rab1 {[%clk 0:00:44]}  Bxf2+ {[%clk 0:01:01]} 20. Qxf2 {[%clk 0:00:29]}  Qxf2+ {[%clk 0:01:00]} 21. Kxf2 {[%clk 0:00:29]}  gxh6 {[%clk 0:01:00]} 22. Nf6+ {[%clk 0:00:20]}  Kg7 {[%clk 0:00:58]} 23. Ng4 {[%clk 0:00:20]}  f6 {[%clk 0:00:54]} 24. Ne3 {[%clk 0:00:20]}  Ne7 {[%clk 0:00:49]} 25. Rbd1 {[%clk 0:00:20]}  Rad8 {[%clk 0:00:48]} 26. a5 {[%clk 0:00:20]}  f5 {[%clk 0:00:34]} 27. Nc4 {[%clk 0:00:20]}  Rxd1 {[%clk 0:00:34]} 28. Rxd1 {[%clk 0:00:20]}  Bd5 {[%clk 0:00:33]} 29. Rb1 {[%clk 0:00:15]}  Bxc4 {[%clk 0:00:21]} 30. Bxc4 {[%clk 0:00:16]}  Rc8 {[%clk 0:00:21]} 31. Rxb7 {[%clk 0:00:08]}  Rxc4 {[%clk 0:00:21]} 32. Rxe7+ {[%clk 0:00:09]}  Kf6 {[%clk 0:00:21]} 33. Rxa7 {[%clk 0:00:06]}  Rxc3 {[%clk 0:00:21]} 34. Rxh7 {[%clk 0:00:07]}  Ra3 {[%clk 0:00:20]} 35. Rxh6+ {[%clk 0:00:06]}  Kg5 {[%clk 0:00:21]} 36. Ra6 {[%clk 0:00:07]}  Kf4 {[%clk 0:00:20]} 37. g3+ {[%clk 0:00:04]}  Ke4 {[%clk 0:00:20]} 38. Kg2 {[%clk 0:00:04]}  Ra2+ {[%clk 0:00:19]} 39. Kh3 {[%clk 0:00:04]}  Kf3 {[%clk 0:00:19]} 40. Rf6 {[%clk 0:00:04]}  f4 {[%clk 0:00:18]} 41. a6 {[%clk 0:00:04]}  Ke3 {[%clk 0:00:12]} 42. gxf4 {[%clk 0:00:04]}  exf4 {[%clk 0:00:12]} 43. Kg4 {[%clk 0:00:04]}  Rg2+ {[%clk 0:00:12]} 44. Kh3 {[%clk 0:00:04]}  Ra2 {[%clk 0:00:10]} 45. Re6+ {[%clk 0:00:04]}  Kf3 {[%clk 0:00:08]} 46. Rb6 {[%clk 0:00:04]}  Ke4 {[%clk 0:00:08]} 47. Re6+ {[%clk 0:00:04]}  Kf3 {[%clk 0:00:08]} 48. Rb6 {[%clk 0:00:04]}  Ke4 {[%clk 0:00:08]} 49. Rb4+ {[%clk 0:00:05]}  Kf3 {[%clk 0:00:09]} 50. Rb3+ {[%clk 0:00:05]}  Ke4 {[%clk 0:00:09]} 51. Rb6 {[%clk 0:00:05]}  Ke3 {[%clk 0:00:08]} 52. Rc6 {[%clk 0:00:04]}  f3 {[%clk 0:00:08]} 53. Re6+ {[%clk 0:00:03]}  Kf2 {[%clk 0:00:07]} 54. Rf6 {[%clk 0:00:03]}  Ke2 {[%clk 0:00:07]} 55. Kg3 {[%clk 0:00:03]}  Ra3 {[%clk 0:00:06]} 56. Re6+ {[%clk 0:00:03]}  Kf1 {[%clk 0:00:06]} 57. a7 {[%clk 0:00:02]}  f2+ {[%clk 0:00:06]} 58. Kf4 {[%clk 0:00:01]}  Rxa7 {[%clk 0:00:06]} 59. Rb6 {[%clk 0:00:02]}  Kg2 {[%clk 0:00:06]} 60. Rb2 {[%clk 0:00:01]}  Rf7+ {[%clk 0:00:05]} 61. Ke3 {[%clk 0:00:01]}  Kg1 {[%clk 0:00:05]} 62. h4 {[%clk 0:00:02]}  f1=Q {[%clk 0:00:04]} 63. h5 {[%clk 0:00:02]}  Qf4+ {[%clk 0:00:04]} 64. Kd3 {[%clk 0:00:03]}  Rd7+ {[%clk 0:00:04]} 65. Kc3 {[%clk 0:00:03]}  Qe5+ {[%clk 0:00:04]} 66. Kc2 {[%clk 0:00:03]}  Qxb2+ {[%clk 0:00:05]} 67. Kxb2 {[%clk 0:00:04]}  Rh7 {[%clk 0:00:06]} 68. Kc3 {[%clk 0:00:04]}  Rxh5 {[%clk 0:00:06]} 69. Kd4 {[%clk 0:00:05]}  Rf5 {[%clk 0:00:06]} 70. Ke4 {[%clk 0:00:06]}  Rf2 {[%clk 0:00:07]} 71. Ke3 {[%clk 0:00:07]}  Kg2 {[%clk 0:00:07]} 72. Kd4 {[%clk 0:00:07]}  Kg3 {[%clk 0:00:07]} 73. Ke3 {[%clk 0:00:08]}  Rf3+ {[%clk 0:00:07]} 74. Kd4 {[%clk 0:00:09]}  Kf4 {[%clk 0:00:07]} 75. Kd5 {[%clk 0:00:09]}  Re3 {[%clk 0:00:07]} 76. Kc4 {[%clk 0:00:10]}  Ke4 {[%clk 0:00:07]} 77. Kb5 {[%clk 0:00:11]}  Rc3 {[%clk 0:00:07]} 78. Ka4 {[%clk 0:00:12]}  Kd4 {[%clk 0:00:08]} 79. Kb4 {[%clk 0:00:13]}  Kd3 {[%clk 0:00:08]} 80. Kb5 {[%clk 0:00:14]}  Rc4 {[%clk 0:00:08]} 0-1


[Site "https://www.chess.com"]

[Event "Titled Tuesday Blitz June 28 Late 2022"]
[White "Laurusas, Tomas"]
[Black "Terry, Renato"]
[WhiteFideId "12803731"]
[BlackFideId "3803457"]
[WhiteElo "2442"]
[BlackElo "2577"]
[Result "1-0"]
[Round "10"]
[TimeControl "180+1"]
[Date "2022.06.28"]
[WhiteClock "0:00:22"]
[BlackClock "0:00:07"]

1. d4 {[%clk 0:02:53]}  d5 {[%clk 0:02:59]} 2. c4 {[%clk 0:02:52]}  dxc4 {[%clk 0:02:59]} 3. e4 {[%clk 0:02:52]}  Nc6 {[%clk 0:02:59]} 4. Be3 {[%clk 0:02:50]}  Nf6 {[%clk 0:02:58]} 5. f3 {[%clk 0:02:47]}  e5 {[%clk 0:02:55]} 6. d5 {[%clk 0:02:42]}  Ne7 {[%clk 0:02:55]} 7. Bxc4 {[%clk 0:02:42]}  Ng6 {[%clk 0:02:56]} 8. Ne2 {[%clk 0:02:41]}  a6 {[%clk 0:02:56]} 9. Nbc3 {[%clk 0:02:41]}  Bd6 {[%clk 0:02:57]} 10. Qd2 {[%clk 0:02:37]}  O-O {[%clk 0:02:57]} 11. g4 {[%clk 0:02:33]}  b5 {[%clk 0:02:57]} 12. Bb3 {[%clk 0:02:32]}  Bd7 {[%clk 0:02:56]} 13. h4 {[%clk 0:02:32]}  a5 {[%clk 0:02:31]} 14. a4 {[%clk 0:02:20]}  bxa4 {[%clk 0:02:29]} 15. Bxa4 {[%clk 0:02:19]}  Rb8 {[%clk 0:02:28]} 16. h5 {[%clk 0:02:17]}  Nf4 {[%clk 0:02:20]} 17. Nxf4 {[%clk 0:02:08]}  exf4 {[%clk 0:02:20]} 18. Bxf4 {[%clk 0:01:58]}  Bxf4 {[%clk 0:02:20]} 19. Qxf4 {[%clk 0:01:58]}  Rxb2 {[%clk 0:02:18]} 20. Rh2 {[%clk 0:01:58]}  Rb4 {[%clk 0:02:13]} 21. Bxd7 {[%clk 0:01:56]}  Nxd7 {[%clk 0:02:07]} 22. h6 {[%clk 0:01:48]}  g6 {[%clk 0:01:48]} 23. Rxa5 {[%clk 0:01:46]}  Rb3 {[%clk 0:01:33]} 24. Rc2 {[%clk 0:01:29]}  Qh4+ {[%clk 0:01:32]} 25. Ke2 {[%clk 0:01:29]}  g5 {[%clk 0:01:25]} 26. Qxc7 {[%clk 0:01:26]}  Nf6 {[%clk 0:01:15]} 27. Ra6 {[%clk 0:01:14]}  Qxh6 {[%clk 0:01:15]} 28. Qd6 {[%clk 0:00:46]}  Kg7 {[%clk 0:01:15]} 29. Kd3 {[%clk 0:00:35]}  Rc8 {[%clk 0:01:09]} 30. Qe5 {[%clk 0:00:32]}  Qg6 {[%clk 0:01:01]} 31. Rc6 {[%clk 0:00:31]}  Ra8 {[%clk 0:00:31]} 32. Kc4 {[%clk 0:00:27]}  Rba3 {[%clk 0:00:27]} 33. Rb2 {[%clk 0:00:26]}  R8a6 {[%clk 0:00:15]} 34. Rbb6 {[%clk 0:00:25]}  Rxb6 {[%clk 0:00:16]} 35. Rxb6 {[%clk 0:00:26]}  Ra8 {[%clk 0:00:15]} 36. Rc6 {[%clk 0:00:25]}  h6 {[%clk 0:00:08]} 37. Nb5 {[%clk 0:00:25]}  Re8 {[%clk 0:00:06]} 38. Qd4 {[%clk 0:00:23]}  h5 {[%clk 0:00:06]} 39. gxh5 {[%clk 0:00:22]}  Qh6 {[%clk 0:00:07]} 40. Nd6 {[%clk 0:00:22]} 1-0


[Site "https://www.chess.com"]

[Event "Titled Tuesday Blitz June 28 Late 2022"]
[White "Le Hetet, Nicolas"]
[Black "Ladan, Nicholas"]
[WhiteFideId "634824"]
[BlackFideId "30918855"]
[WhiteElo "2355"]
[BlackElo "2167"]
[Result "0-1"]
[Round "10"]
[TimeControl "180+1"]
[Date "2022.06.28"]
[WhiteClock "0:00:03"]
[BlackClock "0:00:05"]

1. e4 {[%clk 0:03:00]}  e5 {[%clk 0:03:00]} 2. Nf3 {[%clk 0:03:01]}  Nc6 {[%clk 0:03:00]} 3. d4 {[%clk 0:02:59]}  exd4 {[%clk 0:02:59]} 4. Nxd4 {[%clk 0:03:00]}  Bc5 {[%clk 0:03:00]} 5. Be3 {[%clk 0:02:59]}  Qf6 {[%clk 0:02:59]} 6. c3 {[%clk 0:03:00]}  Nge7 {[%clk 0:02:59]} 7. Bb5 {[%clk 0:02:58]}  b6 {[%clk 0:02:59]} 8. O-O {[%clk 0:02:46]}  O-O {[%clk 0:02:58]} 9. b4 {[%clk 0:02:38]}  Nxd4 {[%clk 0:02:49]} 10. Bxd4 {[%clk 0:02:36]}  Bxd4 {[%clk 0:02:48]} 11. Qxd4 {[%clk 0:02:29]}  Qxd4 {[%clk 0:02:36]} 12. cxd4 {[%clk 0:02:30]}  a5 {[%clk 0:02:36]} 13. bxa5 {[%clk 0:02:24]}  Rxa5 {[%clk 0:02:37]} 14. Nc3 {[%clk 0:02:22]}  Nc6 {[%clk 0:02:31]} 15. Rfd1 {[%clk 0:02:12]}  Re8 {[%clk 0:02:24]} 16. a4 {[%clk 0:02:07]}  g6 {[%clk 0:02:16]} 17. f3 {[%clk 0:02:06]}  Na7 {[%clk 0:02:14]} 18. Nd5 {[%clk 0:01:56]}  c6 {[%clk 0:01:41]} 19. Nf6+ {[%clk 0:01:50]}  Kf8 {[%clk 0:01:41]} 20. Nxe8 {[%clk 0:01:50]}  cxb5 {[%clk 0:01:42]} 21. Nd6 {[%clk 0:01:47]}  bxa4 {[%clk 0:01:39]} 22. Kf2 {[%clk 0:01:45]}  Ba6 {[%clk 0:01:39]} 23. d5 {[%clk 0:01:28]}  Ke7 {[%clk 0:01:35]} 24. e5 {[%clk 0:01:25]}  b5 {[%clk 0:01:22]} 25. Ne4 {[%clk 0:01:23]}  b4 {[%clk 0:01:18]} 26. Rd4 {[%clk 0:01:20]}  b3 {[%clk 0:00:48]} 27. Rdxa4 {[%clk 0:01:13]}  Rxa4 {[%clk 0:00:47]} 28. Rxa4 {[%clk 0:01:13]}  Nb5 {[%clk 0:00:47]} 29. Rxa6 {[%clk 0:01:09]}  b2 {[%clk 0:00:47]} 30. Nd2 {[%clk 0:01:09]}  Nc3 {[%clk 0:00:43]} 31. Rb6 {[%clk 0:01:07]}  h5 {[%clk 0:00:42]} 32. Ke1 {[%clk 0:00:49]}  g5 {[%clk 0:00:39]} 33. Rxb2 {[%clk 0:00:48]}  Nxd5 {[%clk 0:00:38]} 34. Ne4 {[%clk 0:00:46]}  g4 {[%clk 0:00:35]} 35. fxg4 {[%clk 0:00:38]}  Nf4 {[%clk 0:00:35]} 36. Ra2 {[%clk 0:00:24]}  hxg4 {[%clk 0:00:34]} 37. Nf6 {[%clk 0:00:22]}  Nd3+ {[%clk 0:00:32]} 38. Kf1 {[%clk 0:00:21]}  Nxe5 {[%clk 0:00:33]} 39. Nd5+ {[%clk 0:00:17]}  Ke6 {[%clk 0:00:32]} 40. Nf4+ {[%clk 0:00:17]}  Kf5 {[%clk 0:00:32]} 41. g3 {[%clk 0:00:16]}  Nf3 {[%clk 0:00:24]} 42. Kg2 {[%clk 0:00:14]}  Ke5 {[%clk 0:00:20]} 43. Ra7 {[%clk 0:00:13]}  Kd6 {[%clk 0:00:16]} 44. h4 {[%clk 0:00:12]}  Ke7 {[%clk 0:00:11]} 45. Ra4 {[%clk 0:00:09]}  Ne5 {[%clk 0:00:10]} 46. Nd5+ {[%clk 0:00:07]}  Ke6 {[%clk 0:00:10]} 47. Ne3 {[%clk 0:00:07]}  f5 {[%clk 0:00:09]} 48. h5 {[%clk 0:00:04]}  Kf6 {[%clk 0:00:07]} 49. h6 {[%clk 0:00:03]}  Nf7 {[%clk 0:00:05]} 0-1


[Site "https://www.chess.com"]

[Event "Titled Tuesday Blitz June 28 Late 2022"]
[White "Matlakov, Maxim"]
[Black "Zhu, Jiner"]
[WhiteFideId "4168003"]
[BlackFideId "8608059"]
[WhiteElo "2669"]
[BlackElo "2281"]
[Result "1-0"]
[Round "10"]
[TimeControl "180+1"]
[Date "2022.06.28"]
[WhiteClock "0:00:16"]
[BlackClock "0:00:03"]

1. Nf3 {[%clk 0:03:00]}  Nf6 {[%clk 0:02:59]} 2. g3 {[%clk 0:02:59]}  d5 {[%clk 0:02:59]} 3. Bg2 {[%clk 0:02:55]}  e6 {[%clk 0:03:00]} 4. O-O {[%clk 0:02:54]}  c5 {[%clk 0:03:00]} 5. d3 {[%clk 0:02:52]}  Nc6 {[%clk 0:03:00]} 6. e4 {[%clk 0:02:52]}  dxe4 {[%clk 0:02:48]} 7. dxe4 {[%clk 0:02:53]}  Qxd1 {[%clk 0:02:38]} 8. Rxd1 {[%clk 0:02:54]}  Nxe4 {[%clk 0:02:38]} 9. Na3 {[%clk 0:02:52]}  Bd7 {[%clk 0:02:02]} 10. Nb5 {[%clk 0:02:05]}  O-O-O {[%clk 0:02:02]} 11. Ng5 {[%clk 0:02:05]}  Nxg5 {[%clk 0:01:50]} 12. Bxg5 {[%clk 0:02:06]}  f6 {[%clk 0:01:37]} 13. Be3 {[%clk 0:02:06]}  Be7 {[%clk 0:01:22]} 14. Nd6+ {[%clk 0:02:03]}  Bxd6 {[%clk 0:01:13]} 15. Rxd6 {[%clk 0:02:04]}  Nd4 {[%clk 0:00:51]} 16. Bxd4 {[%clk 0:01:42]}  cxd4 {[%clk 0:00:52]} 17. Rxd4 {[%clk 0:01:42]}  Bc6 {[%clk 0:00:52]} 18. Rc4 {[%clk 0:01:41]}  Kc7 {[%clk 0:00:50]} 19. Bxc6 {[%clk 0:01:38]}  bxc6 {[%clk 0:00:50]} 20. Re1 {[%clk 0:01:38]}  e5 {[%clk 0:00:50]} 21. Re3 {[%clk 0:01:38]}  Rd1+ {[%clk 0:00:44]} 22. Kg2 {[%clk 0:01:38]}  Rhd8 {[%clk 0:00:37]} 23. Ra3 {[%clk 0:01:38]}  Kb6 {[%clk 0:00:29]} 24. Rb3+ {[%clk 0:01:30]}  Kc7 {[%clk 0:00:28]} 25. Ra4 {[%clk 0:01:30]}  R8d2 {[%clk 0:00:24]} 26. Rxa7+ {[%clk 0:01:28]}  Kd6 {[%clk 0:00:23]} 27. Rc3 {[%clk 0:01:25]}  e4 {[%clk 0:00:21]} 28. Rxg7 {[%clk 0:01:21]}  Re2 {[%clk 0:00:20]} 29. Rf7 {[%clk 0:01:15]}  Ke6 {[%clk 0:00:17]} 30. Rxh7 {[%clk 0:00:39]}  Rdd2 {[%clk 0:00:17]} 31. Kh3 {[%clk 0:00:31]}  Rxf2 {[%clk 0:00:15]} 32. Kg4 {[%clk 0:00:31]}  Rxc2 {[%clk 0:00:14]} 33. Rh8 {[%clk 0:00:19]}  Rxc3 {[%clk 0:00:13]} 34. bxc3 {[%clk 0:00:20]}  Rxa2 {[%clk 0:00:12]} 35. Re8+ {[%clk 0:00:20]}  Kd5 {[%clk 0:00:12]} 36. h4 {[%clk 0:00:20]}  Rf2 {[%clk 0:00:08]} 37. h5 {[%clk 0:00:19]}  f5+ {[%clk 0:00:08]} 38. Kg5 {[%clk 0:00:19]}  Rf3 {[%clk 0:00:08]} 39. h6 {[%clk 0:00:18]}  Rxg3+ {[%clk 0:00:07]} 40. Kxf5 {[%clk 0:00:18]}  Rxc3 {[%clk 0:00:06]} 41. Rd8+ {[%clk 0:00:18]}  Kc4 {[%clk 0:00:04]} 42. h7 {[%clk 0:00:15]}  Rh3 {[%clk 0:00:05]} 43. h8=Q {[%clk 0:00:15]}  Rxh8 {[%clk 0:00:05]} 44. Rxh8 {[%clk 0:00:16]}  e3 {[%clk 0:00:04]} 45. Ke4 {[%clk 0:00:15]}  e2 {[%clk 0:00:04]} 46. Rh1 {[%clk 0:00:15]}  Kc3 {[%clk 0:00:04]} 47. Ke3 {[%clk 0:00:14]}  c5 {[%clk 0:00:04]} 48. Kxe2 {[%clk 0:00:15]}  Kc2 {[%clk 0:00:03]} 49. Rh4 {[%clk 0:00:15]}  Kc3 {[%clk 0:00:03]} 50. Kd1 {[%clk 0:00:16]} 1-0


[Site "https://www.chess.com"]

[Event "Titled Tuesday Blitz June 28 Late 2022"]
[White "Mortazavi, Ali"]
[Black "Leiva, Gianmarco"]
[WhiteFideId "401323"]
[BlackFideId "3804399"]
[WhiteElo "2339"]
[BlackElo "2323"]
[Result "1-0"]
[Round "10"]
[TimeControl "180+1"]
[Date "2022.06.28"]
[WhiteClock "0:00:06"]
[BlackClock "0:00:02"]

1. Nf3 {[%clk 0:02:58]}  Nf6 {[%clk 0:02:56]} 2. g3 {[%clk 0:02:58]}  d5 {[%clk 0:02:56]} 3. Bg2 {[%clk 0:02:59]}  Bg4 {[%clk 0:02:55]} 4. O-O {[%clk 0:03:00]}  c6 {[%clk 0:02:55]} 5. d3 {[%clk 0:03:01]}  Nbd7 {[%clk 0:02:55]} 6. c4 {[%clk 0:03:01]}  dxc4 {[%clk 0:02:44]} 7. dxc4 {[%clk 0:03:01]}  e5 {[%clk 0:02:41]} 8. Nc3 {[%clk 0:03:01]}  Be7 {[%clk 0:02:23]} 9. h3 {[%clk 0:03:00]}  Be6 {[%clk 0:02:23]} 10. b3 {[%clk 0:03:00]}  O-O {[%clk 0:02:18]} 11. Qc2 {[%clk 0:03:00]}  h6 {[%clk 0:02:17]} 12. Nh4 {[%clk 0:02:56]}  Re8 {[%clk 0:02:12]} 13. Nf5 {[%clk 0:02:56]}  Bf8 {[%clk 0:02:12]} 14. Bb2 {[%clk 0:02:54]}  Qc7 {[%clk 0:01:59]} 15. Rad1 {[%clk 0:02:54]}  Nc5 {[%clk 0:01:43]} 16. g4 {[%clk 0:02:39]}  a5 {[%clk 0:01:37]} 17. Ng3 {[%clk 0:02:33]}  a4 {[%clk 0:01:31]} 18. Nce4 {[%clk 0:02:04]}  Nfxe4 {[%clk 0:00:55]} 19. Nxe4 {[%clk 0:02:04]}  axb3 {[%clk 0:00:54]} 20. axb3 {[%clk 0:02:05]}  Ra2 {[%clk 0:00:46]} 21. Qc3 {[%clk 0:01:53]}  f6 {[%clk 0:00:30]} 22. e3 {[%clk 0:01:43]}  Rea8 {[%clk 0:00:25]} 23. Rd2 {[%clk 0:01:37]}  Qb6 {[%clk 0:00:16]} 24. Nxc5 {[%clk 0:01:20]}  Bxc5 {[%clk 0:00:17]} 25. Rd3 {[%clk 0:01:17]}  Rxb2 {[%clk 0:00:10]} 26. Qxb2 {[%clk 0:01:15]}  Bxc4 {[%clk 0:00:11]} 27. Be4 {[%clk 0:00:58]}  Bxd3 {[%clk 0:00:10]} 28. Bxd3 {[%clk 0:00:59]}  Rd8 {[%clk 0:00:09]} 29. Bb1 {[%clk 0:00:56]}  Qb4 {[%clk 0:00:08]} 30. Qc2 {[%clk 0:00:42]}  e4 {[%clk 0:00:08]} 31. Rd1 {[%clk 0:00:35]}  Rxd1+ {[%clk 0:00:06]} 32. Qxd1 {[%clk 0:00:35]}  Bd6 {[%clk 0:00:03]} 33. Kg2 {[%clk 0:00:34]}  Kf8 {[%clk 0:00:03]} 34. Bc2 {[%clk 0:00:21]}  Ke7 {[%clk 0:00:03]} 35. Qb1 {[%clk 0:00:21]}  Qc3 {[%clk 0:00:02]} 36. Bxe4 {[%clk 0:00:20]}  Qe5 {[%clk 0:00:02]} 37. Bf3 {[%clk 0:00:18]}  Qh2+ {[%clk 0:00:02]} 38. Kf1 {[%clk 0:00:18]}  Qxh3+ {[%clk 0:00:03]} 39. Ke2 {[%clk 0:00:19]}  Qh2 {[%clk 0:00:03]} 40. Qh7 {[%clk 0:00:18]}  Kf7 {[%clk 0:00:02]} 41. Be4 {[%clk 0:00:18]}  Bg3 {[%clk 0:00:02]} 42. Bg6+ {[%clk 0:00:18]}  Ke6 {[%clk 0:00:02]} 43. Qg8+ {[%clk 0:00:18]}  Kd6 {[%clk 0:00:02]} 44. Qf8+ {[%clk 0:00:17]}  Kc7 {[%clk 0:00:03]} 45. Qxg7+ {[%clk 0:00:17]}  Kb6 {[%clk 0:00:03]} 46. Qxf6 {[%clk 0:00:18]}  Be5 {[%clk 0:00:02]} 47. Qf5 {[%clk 0:00:14]}  Bd6 {[%clk 0:00:02]} 48. Qe4 {[%clk 0:00:13]}  Bg3 {[%clk 0:00:01]} 49. Qf3 {[%clk 0:00:14]}  Bd6 {[%clk 0:00:01]} 50. Bd3 {[%clk 0:00:14]}  Qe5 {[%clk 0:00:02]} 51. Qe4 {[%clk 0:00:14]}  Qb2+ {[%clk 0:00:02]} 52. Kf3 {[%clk 0:00:14]}  Qxb3 {[%clk 0:00:02]} 53. Qd4+ {[%clk 0:00:12]}  Bc5 {[%clk 0:00:02]} 54. Qe4 {[%clk 0:00:12]}  Qf7+ {[%clk 0:00:03]} 55. Kg2 {[%clk 0:00:12]}  Qd7 {[%clk 0:00:02]} 56. Kg1 {[%clk 0:00:10]}  Qd6 {[%clk 0:00:02]} 57. Kg2 {[%clk 0:00:10]}  Ka5 {[%clk 0:00:02]} 58. f4 {[%clk 0:00:10]}  b5 {[%clk 0:00:02]} 59. Qf5 {[%clk 0:00:08]}  Bxe3 {[%clk 0:00:02]} 60. Kf3 {[%clk 0:00:08]}  Bxf4 {[%clk 0:00:02]} 61. Qxf4 {[%clk 0:00:08]}  Qxd3+ {[%clk 0:00:02]} 62. Kg2 {[%clk 0:00:07]}  Qe2+ {[%clk 0:00:03]} 63. Kh3 {[%clk 0:00:08]}  Qe6 {[%clk 0:00:03]} 64. Qd2+ {[%clk 0:00:07]}  Kb6 {[%clk 0:00:03]} 65. Qd4+ {[%clk 0:00:07]}  c5 {[%clk 0:00:03]} 66. Qd8+ {[%clk 0:00:08]}  Kc6 {[%clk 0:00:03]} 67. Kh4 {[%clk 0:00:07]}  Qe1+ {[%clk 0:00:03]} 68. Kh5 {[%clk 0:00:07]}  Qe6 {[%clk 0:00:03]} 69. Kh4 {[%clk 0:00:06]}  Qd6 {[%clk 0:00:03]} 70. Qa8+ {[%clk 0:00:06]}  Kd7 {[%clk 0:00:03]} 71. Kh5 {[%clk 0:00:06]}  Qh2+ {[%clk 0:00:03]} 72. Kg6 {[%clk 0:00:06]}  Qd6+ {[%clk 0:00:03]} 73. Kh7 {[%clk 0:00:07]}  b4 {[%clk 0:00:02]} 74. Qb7+ {[%clk 0:00:07]}  Ke6 {[%clk 0:00:02]} 75. Kxh6 {[%clk 0:00:07]}  Ke5+ {[%clk 0:00:02]} 76. Kh5 {[%clk 0:00:07]}  Qd4 {[%clk 0:00:02]} 77. Qe7+ {[%clk 0:00:07]}  Kf4 {[%clk 0:00:02]} 78. Qf7+ {[%clk 0:00:06]}  Kg3 {[%clk 0:00:02]} 79. g5 {[%clk 0:00:05]}  Qh8+ {[%clk 0:00:02]} 80. Kg6 {[%clk 0:00:06]}  b3 {[%clk 0:00:01]} 81. Qc7+ {[%clk 0:00:06]}  Kg4 {[%clk 0:00:01]} 82. Qxc5 {[%clk 0:00:06]}  Qe8+ {[%clk 0:00:02]} 83. Kg7 {[%clk 0:00:05]}  Qd7+ {[%clk 0:00:02]} 84. Kh6 {[%clk 0:00:06]}  Qe6+ {[%clk 0:00:02]} 85. g6 {[%clk 0:00:06]}  Kh3 {[%clk 0:00:01]} 86. Qh5+ {[%clk 0:00:07]}  Kg3 {[%clk 0:00:01]} 87. Qg5+ {[%clk 0:00:07]}  Kf3 {[%clk 0:00:01]} 88. Qb5 {[%clk 0:00:07]}  Qh3+ {[%clk 0:00:01]} 89. Kg7 {[%clk 0:00:08]}  Qe6 {[%clk 0:00:02]} 90. Qb7+ {[%clk 0:00:07]}  Kg4 {[%clk 0:00:02]} 91. Kh7 {[%clk 0:00:07]}  Kh5 {[%clk 0:00:01]} 92. Qh1+ {[%clk 0:00:05]}  Kg5 {[%clk 0:00:02]} 93. Qg2+ {[%clk 0:00:06]}  Kf6 {[%clk 0:00:02]} 94. g7 {[%clk 0:00:06]}  Qf5+ {[%clk 0:00:02]} 95. Kh8 {[%clk 0:00:06]}  Qh5+ {[%clk 0:00:02]} 96. Kg8 {[%clk 0:00:06]} 1-0


[Site "https://www.chess.com"]